[Event "41st Jacques-Lemans-Open 2022"]
[Site "St. Veit/Glan"]
[Date "2022.07.09"]
[Round "1.1"]
[White "Hechl, Fabian"]
[Black "Bosiocic, Marin"]
[Result "0-1"]
[ECO "B33"]
[WhiteElo "1991"]
[BlackElo "2549"]
[Annotator "TA"]
[PlyCount "62"]
[EventDate "2022.07.09"]
[EventType "swiss"]
[EventCountry "AUT"]
[SourceTitle "playchess.com"]
[Source "ChessBase"]
[SourceQuality "1"]
[TimeControl "40/5400+30:1800+30"]

{[%evp 23,62,10,13,-1,3,0,0,-2,7,10,28,12,27,26,74,50,45,54,62,59,88,89,104,102,86,89,93,0,0,0,0,-151,-152,-133,-122,-122,-126,-323,-309,-1333,-1256]} 1. e4 {[%emt 0:00:05]} c5 {[%emt 0:00:10]} 2. Nf3 {[%emt 0:00:05][%cal Bg1f3,Bf3d4,Bd4b5,Bb5a3,Ba3c2][%mdl 32]} Nc6 {[%emt 0:00:13]} 3. d4 {[%emt 0:00:08]} cxd4 {[%emt 0:00:10]} 4. Nxd4 {[%emt 0:00:03]} Nf6 {[%emt 0:00:14]} 5. Nc3 {[%emt 0:00:05]} e5 {[%emt 0:00:09]} 6. Ndb5 {[%emt 0:00:05]} d6 {[%emt 0:00:11]} 7. Bg5 {[%emt 0:00:06]} a6 {[%emt 0:00:08]} 8. Na3 {[%emt 0:00:01]} b5 {[%emt 0:00:13][%cal Bb7b5,Bb5b4][%mdl 32]} 9. Nd5 {[%emt 0:00:03]} Be7 {[%emt 0:00:12]} 10. Bxf6 {[%emt 0:00:09]} Bxf6 {[%emt 0:00:08]} 11. c4 {[%emt 0:00:04]} b4 {[%emt 0:00:15]} 12. Nc2 {[%emt 0:00:02]} a5 {[%emt 0:00:13] 12...0-0 might become the main line.} 13. g3 {[%emt 0:00:08] B33: Sicilian: Pelikan and Sveshnikov Variations.} O-O {[%emt 0:00:18]} 14. h4 {[%emt 0:00:08][%cal Bh2h4,Bh4h5][%mdl 32]} Be6 {[%emt 0:00:17]} 15. Bh3 {[%emt 0:00:33] The position is equal.} Ra6 {[%emt 0:02:51]} 16. Kf1 {[%emt 0:05:58]} g6 {[%emt 0:00:37] [#]} 17. h5 $146 {[%emt 0:04:51]} ({Predecessor:} 17. Qd3 Ra7 18. Kg2 Bg7 19. Rad1 Kh8 20. h5 gxh5 21. Bf5 Bxf5 22. exf5 Qg5 23. Rh4 {1-0 (31) Reuker,J (2334)-Mueer,S (2253) Bremen 2017}) 17... Bg7 {[%emt 0:02:41]} 18. Kg2 {[%emt 0:21:36]} Nb8 {[%emt 0:04:51]} (18... Ra7 $11) 19. Nce3 {[%emt 0:12:52] Pair of Knights!} Nd7 {[%emt 0:03:46]} 20. hxg6 {[%emt 0:04:32]} hxg6 {[%emt 0:02:27]} 21. Qf3 {[%emt 0:27:16]} Nc5 {[%emt 0:02:35]} 22. Rh2 {[%emt 0:08:01]} Ra7 {[%emt 0:03:17]} 23. Rah1 $1 {[%emt 0:01:16][%cal Oe3f5] Nf5! is the strong threat.} Bxd5 {[%emt 0:15:36]} 24. Nxd5 {[%emt 0:02:14]} Qg5 {[%emt 0:01:17] [#]} 25. Qe2 {[%emt 0:10:11]} (25. Bg4 $6 f5 26. exf5 gxf5 $11) (25. Ne3 $1 $16) 25... f5 $11 {[%emt 0:03:43]} 26. exf5 {[%emt 0:02:08]} gxf5 {[%emt 0:00:13]} 27. f4 $2 {[%emt 0:00:47]} (27. Kf1 $11) 27... exf4 $17 {[%emt 0:04:00]} 28. Nxf4 {[%emt 0:00:29]} Be5 $36 {[%emt 0:00:38][%mdl 2048] Black is in control.} 29. Qf3 {[%emt 0:00:30]} Ne4 {[%emt 0:02:41] White must now prevent ...Rg7. Black is more active.} (29... Bxb2 30. Qd5+ Rff7 {[#]} 31. Bg4 $1 $16) 30. Rd1 $2 {[%emt 0:00:31]} (30. Re1 $17 {might work better.} Re7 31. Rhh1 (31. Bxf5 $2 Qxg3+ 32. Qxg3+ Nxg3 $17)) 30... Rg7 $19 {[%emt 0:01:10] And now ...Bxf4 would win.} ({Don't take} 30... Bxb2 31. Ne6 Qxg3+ 32. Qxg3+ Nxg3 33. Nxf8 (33. Kxg3 Be5+ 34. Nf4 Rc7 $16) 33... Kxf8 34. Rxd6 $18 (34. Kxg3 Be5+ 35. Kg2 Bxh2 $16)) 31. Rd3 $2 {[%emt 0:00:28]} (31. Nh5 Rh7 32. Nf4) 31... Bxf4 {[%emt 0:00:50] Weighted Error Value: White=0.61/Black=0.08 (flawless)} 0-1

[Event "41st Jacques-Lemans-Open 2022"]
[Site "St. Veit/Glan"]
[Date "2022.07.09"]
[Round "1.2"]
[White "Rogic, Davor"]
[Black "Miazhynski, Michael"]
[Result "1-0"]
[ECO "B15"]
[WhiteElo "2474"]
[BlackElo "1994"]
[Annotator "RC"]
[PlyCount "77"]
[EventDate "2022.07.09"]
[EventType "swiss"]
[EventCountry "AUT"]
[SourceTitle "playchess.com"]
[Source "ChessBase"]
[SourceQuality "1"]
[TimeControl "40/5400+30:1800+30"]

1. e4 {[%emt 0:00:13]} c6 {[%emt 0:00:06]} 2. d4 {[%emt 0:01:02]} d5 {[%emt 0:00:06]} 3. Nd2 {[%emt 0:01:02]} dxe4 {[%emt 0:00:10]} 4. Nxe4 {[%emt 0:00:13]} Nf6 {[%emt 0:00:14]} 5. Nxf6+ {[%emt 0:01:19]} exf6 {[%emt 0:00:08]} 6. c3 {[%emt 0:01:20]} Bd6 {[%emt 0:00:09]} 7. Bd3 {[%emt 0:01:18]} Na6 {[%emt 0:01:18]} 8. Qc2 {[%emt 0:04:14]} h5 {[%emt 0:02:20]} 9. Be3 {[%emt 0:02:23]} Nc7 {[%emt 0:01:15]} 10. Ne2 {[%emt 0:02:37]} h4 {[%emt 0:11:34]} 11. h3 {[%emt 0:02:37]} Nd5 {[%emt 0:03:28]} 12. Bd2 {[%emt 0:02:12]} Be6 {[%emt 0:13:28]} 13. a3 {[%emt 0:04:02]} b5 {[%emt 0:25:29]} 14. b3 {[%emt 0:01:47]} a6 {[%emt 0:13:38]} 15. c4 {[%emt 0:02:18]} Ne7 {[%emt 0:00:30]} 16. a4 {[%emt 0:03:53]} bxc4 {[%emt 0:02:37]} 17. bxc4 {[%emt 0:00:10]} Qd7 {[%emt 0:01:25]} 18. Rb1 {[%emt 0:04:28]} O-O {[%emt 0:01:19]} 19. a5 {[%emt 0:03:09]} Rfb8 {[%emt 0:00:55]} 20. Bc3 {[%emt 0:18:08]} Rxb1+ {[%emt 0:03:17]} 21. Qxb1 {[%emt 0:00:05]} Rb8 {[%emt 0:00:10]} 22. Qc2 {[%emt 0:02:26]} Bf5 {[%emt 0:02:08]} 23. Bxf5 {[%emt 0:02:55]} Qxf5 {[%emt 0:00:27]} 24. Qxf5 {[%emt 0:00:18]} Nxf5 {[%emt 0:00:08]} 25. Kd2 {[%emt 0:00:05]} Bc7 {[%emt 0:02:11]} 26. Ra1 {[%emt 0:03:24]} Nd6 {[%emt 0:01:42]} 27. Kd3 {[%emt 0:00:06]} f5 {[%emt 0:03:02]} 28. f3 {[%emt 0:01:08]} f6 {[%emt 0:00:58]} 29. Nc1 {[%emt 0:00:36]} Kf7 {[%emt 0:02:27]} 30. Na2 {[%emt 0:01:24]} c5 {[%emt 0:00:07]} 31. dxc5 {[%emt 0:01:28]} Nb7 {[%emt 0:00:18]} 32. c6 {[%emt 0:00:58]} Nc5+ {[%emt 0:06:31]} 33. Kc2 {[%emt 0:00:15]} Be5 {[%emt 0:02:51]} 34. Nb4 {[%emt 0:05:59]} Ke6 {[%emt 0:00:31]} 35. Re1 {[%emt 0:07:05]} f4 {[%emt 0:00:24]} 36. Nd5 {[%emt 0:05:58]} Kd6 {[%emt 0:00:34]} 37. c7 {[%emt 0:00:17]} Rc8 {[%emt 0:00:15]} 38. Bb4 {[%emt 0:00:19]} g5 {[%emt 0:00:43]} 39. Rd1 {[%emt 0:00:47]} 1-0

[Event "41st Jacques-Lemans-Open 2022"]
[Site "St. Veit/Glan"]
[Date "2022.07.09"]
[Round "1.3"]
[White "Missethan, Michael"]
[Black "Bauer, Sebastian"]
[Result "0-1"]
[ECO "C47"]
[WhiteElo "1991"]
[BlackElo "2380"]
[Annotator "RC"]
[PlyCount "120"]
[EventDate "2022.07.09"]
[EventType "swiss"]
[EventCountry "AUT"]
[SourceTitle "playchess.com"]
[Source "ChessBase"]
[SourceQuality "1"]
[TimeControl "40/5400+30:1800+30"]

1. e4 {[%emt 0:00:04]} e5 {[%emt 0:00:08]} 2. Nf3 {[%emt 0:00:05]} Nc6 {[%emt 0:00:06]} 3. Nc3 {[%emt 0:00:04]} Nf6 {[%emt 0:00:07]} 4. d4 {[%emt 0:00:05]} exd4 {[%emt 0:00:05]} 5. Nxd4 {[%emt 0:00:04]} Bc5 {[%emt 0:00:09]} 6. Nxc6 {[%emt 0:00:30]} bxc6 {[%emt 0:00:27]} 7. Bd3 {[%emt 0:00:15]} O-O {[%emt 0:00:10]} 8. O-O {[%emt 0:00:09]} Re8 {[%emt 0:00:06]} 9. Bg5 {[%emt 0:01:24]} h6 {[%emt 0:00:57]} 10. Bh4 {[%emt 0:01:51]} Bd4 {[%emt 0:00:20]} 11. Re1 {[%emt 0:11:03]} Rb8 {[%emt 0:03:03]} 12. Rb1 {[%emt 0:04:35]} d6 {[%emt 0:04:59]} 13. Qd2 {[%emt 0:05:30]} g5 {[%emt 0:24:29]} 14. Bg3 {[%emt 0:02:43]} Nh5 {[%emt 0:03:16]} 15. Be2 {[%emt 0:18:16]} Bxc3 {[%emt 0:05:28]} 16. Qxc3 {[%emt 0:00:50]} Nxg3 {[%emt 0:02:00]} 17. hxg3 {[%emt 0:05:32]} Bd7 {[%emt 0:13:03]} 18. Bc4 {[%emt 0:07:35]} Qe7 {[%emt 0:01:43]} 19. Qd4 {[%emt 0:05:24]} c5 {[%emt 0:07:55]} 20. Qc3 {[%emt 0:05:25]} Rb4 {[%emt 0:06:00]} 21. a3 {[%emt 0:04:42]} Rb6 {[%emt 0:00:18]} 22. b3 {[%emt 0:04:32]} Qe5 {[%emt 0:03:48]} 23. Qxe5 {[%emt 0:03:01]} Rxe5 {[%emt 0:00:03]} 24. f3 {[%emt 0:09:18]} Kg7 {[%emt 0:02:28]} 25. Kf2 {[%emt 0:00:22]} a5 {[%emt 0:00:33]} 26. a4 {[%emt 0:00:53]} Re8 {[%emt 0:01:57]} 27. Rbd1 {[%emt 0:02:09]} Be6 {[%emt 0:01:06]} 28. Bxe6 {[%emt 0:03:56]} fxe6 {[%emt 0:00:02]} 29. Rd3 {[%emt 0:01:49]} Reb8 {[%emt 0:03:46]} 30. Rc3 {[%emt 0:01:46]} e5 {[%emt 0:00:28]} 31. Rc4 {[%emt 0:01:08]} Rb4 {[%emt 0:05:42]} 32. Rxb4 {[%emt 0:00:12]} Rxb4 {[%emt 0:00:01]} 33. Re3 {[%emt 0:00:36]} Kf6 {[%emt 0:00:54]} 34. Rc3 {[%emt 0:00:10]} Ke6 {[%emt 0:02:51]} 35. Ke3 {[%emt 0:00:32]} c6 {[%emt 0:01:15]} 36. Kd3 {[%emt 0:00:46]} Rb8 {[%emt 0:01:20]} 37. Ke3 {[%emt 0:00:30]} h5 {[%emt 0:03:42]} 38. Kf2 {[%emt 0:01:03]} g4 {[%emt 0:01:44]} 39. f4 {[%emt 0:00:27]} exf4 {[%emt 0:00:32]} 40. gxf4 {[%emt 0:00:01]} Rb4 {[%emt 0:02:44]} 41. Rc4 {[%emt 0:18:03]} h4 {[%emt 0:10:13]} 42. Ke3 {[%emt 0:08:13]} d5 {[%emt 0:11:25]} 43. Rxc5 {[%emt 0:05:33]} Rxe4+ {[%emt 0:00:21]} 44. Kd3 {[%emt 0:00:34]} Rxf4 {[%emt 0:04:24]} 45. Rxc6+ {[%emt 0:00:16]} Kf5 {[%emt 0:00:01]} 46. Ke3 {[%emt 0:01:00]} d4+ {[%emt 0:01:28]} 47. Ke2 {[%emt 0:00:10]} g3 {[%emt 0:00:22]} 48. Rh6 {[%emt 0:00:41]} Rf2+ {[%emt 0:00:32]} 49. Kd3 {[%emt 0:00:04]} Kg5 {[%emt 0:00:04]} 50. Rh8 {[%emt 0:00:31]} Rxg2 {[%emt 0:00:06]} 51. Rg8+ {[%emt 0:00:43]} Kf5 {[%emt 0:00:58]} 52. Rf8+ {[%emt 0:00:44]} Kg4 {[%emt 0:00:16]} 53. Rg8+ {[%emt 0:00:03]} Kh3 {[%emt 0:00:13]} 54. c4 {[%emt 0:00:35]} dxc3 {[%emt 0:00:17]} 55. Kxc3 {[%emt 0:00:02]} Rf2 {[%emt 0:00:16]} 56. b4 {[%emt 0:00:27]} Rf3+ {[%emt 0:00:07]} 57. Kc4 {[%emt 0:00:05]} Rf4+ {[%emt 0:00:06]} 58. Kb5 {[%emt 0:00:01]} Rxb4+ {[%emt 0:00:21]} 59. Kxa5 {[%emt 0:00:06]} Rb1 {[%emt 0:00:07]} 60. Ka6 {[%emt 0:00:09]} g2 {[%emt 0:00:08]} 0-1

[Event "41st Jacques-Lemans-Open 2022"]
[Site "St. Veit/Glan"]
[Date "2022.07.09"]
[Round "1.4"]
[White "Fahrner, Kurt"]
[Black "Hofbauer, Peter"]
[Result "1/2-1/2"]
[ECO "A20"]
[WhiteElo "2331"]
[BlackElo "1986"]
[Annotator "RC"]
[PlyCount "178"]
[EventDate "2022.07.09"]
[EventType "swiss"]
[EventCountry "AUT"]
[SourceTitle "playchess.com"]
[Source "ChessBase"]
[SourceQuality "1"]
[TimeControl "40/5400+30:1800+30"]

1. c4 {[%emt 0:00:11]} e5 {[%emt 0:00:26]} 2. g3 {[%emt 0:00:05]} c6 {[%emt 0:00:15]} 3. d4 {[%emt 0:01:39]} exd4 {[%emt 0:01:11]} 4. Qxd4 {[%emt 0:06:55]} d5 {[%emt 0:01:26]} 5. Bg2 {[%emt 0:01:21]} Be6 {[%emt 0:01:47]} 6. Nf3 {[%emt 0:00:29]} dxc4 {[%emt 0:04:23]} 7. Qxd8+ {[%emt 0:00:06]} Kxd8 {[%emt 0:00:07]} 8. Ng5 {[%emt 0:01:21]} Bb4+ {[%emt 0:02:25]} 9. Bd2 {[%emt 0:01:50]} Bxd2+ {[%emt 0:00:30]} 10. Kxd2 {[%emt 0:00:47]} Nd7 {[%emt 0:01:03]} 11. Nxe6+ {[%emt 0:02:20]} fxe6 {[%emt 0:00:13]} 12. Na3 {[%emt 0:00:10]} Nb6 {[%emt 0:01:22]} 13. Rhc1 {[%emt 0:00:39]} Ke7 {[%emt 0:01:19]} 14. Nxc4 {[%emt 0:05:43]} Rd8+ {[%emt 0:02:56]} 15. Ke1 {[%emt 0:00:14]} Nxc4 {[%emt 0:01:37]} 16. Rxc4 {[%emt 0:00:05]} Nf6 {[%emt 0:00:13]} 17. b4 {[%emt 0:02:41]} a6 {[%emt 0:01:05]} 18. a4 {[%emt 0:00:51]} Rd7 {[%emt 0:00:11]} 19. b5 {[%emt 0:02:38]} cxb5 {[%emt 0:06:27]} 20. axb5 {[%emt 0:05:17]} axb5 {[%emt 0:00:46]} 21. Rc5 {[%emt 0:01:26]} b4 {[%emt 0:02:40]} 22. Rb5 {[%emt 0:02:28]} Nd5 {[%emt 0:00:34]} 23. Bxd5 {[%emt 0:00:34]} exd5 {[%emt 0:00:41]} 24. Rxb4 {[%emt 0:04:03]} Rc8 {[%emt 0:00:52]} 25. Rab1 {[%emt 0:00:38]} Rcc7 {[%emt 0:01:05]} 26. Kd2 {[%emt 0:00:13]} Kd8 {[%emt 0:00:37]} 27. Kd3 {[%emt 0:02:01]} Kc8 {[%emt 0:02:44]} 28. Rb5 {[%emt 0:00:50]} Rc6 {[%emt 0:04:52]} 29. Ra1 {[%emt 0:10:17]} b6 {[%emt 0:07:05]} 30. Ra4 {[%emt 0:05:05]} Kb7 {[%emt 0:05:05]} 31. Rh4 {[%emt 0:04:30]} g6 {[%emt 0:08:13]} 32. Rhb4 {[%emt 0:01:57]} Kc7 {[%emt 0:02:24]} 33. Rb2 {[%emt 0:00:43]} Rdd6 {[%emt 0:01:04]} 34. Ra2 {[%emt 0:00:35]} Kb7 {[%emt 0:02:20]} 35. Kd4 {[%emt 0:01:01]} Rc4+ {[%emt 0:13:10]} 36. Ke5 {[%emt 0:01:38]} Rd8 {[%emt 0:00:10]} 37. Rxd5 {[%emt 0:02:30]} Re8+ {[%emt 0:02:00]} 38. Kf6 {[%emt 0:00:36]} Rf8+ {[%emt 0:02:02]} 39. Kg5 {[%emt 0:04:13]} Rxf2 {[%emt 0:01:48]} 40. Rd7+ {[%emt 0:00:46]} Kc6 {[%emt 0:10:09]} 41. Rxh7 {[%emt 0:30:20]} Re4 {[%emt 0:32:26]} 42. Rc2+ {[%emt 0:20:42]} Kd6 {[%emt 0:04:40]} 43. Kxg6 {[%emt 0:07:53]} Rg4+ {[%emt 0:03:32]} 44. Kh5 {[%emt 0:00:56]} Rxh2+ {[%emt 0:00:44]} 45. Kxg4 {[%emt 0:00:11]} Rxh7 {[%emt 0:00:06]} 46. Kf4 {[%emt 0:01:08]} b5 {[%emt 0:01:02]} 47. g4 {[%emt 0:00:00]} b4 {[%emt 0:00:00]} 48. g5 {[%emt 0:00:00]} b3 {[%emt 0:00:00]} 49. Rb2 {[%emt 0:00:00]} Rf7+ {[%emt 0:00:00]} 50. Ke4 {[%emt 0:00:00]} Rb7 {[%emt 0:00:00]} 51. Kd4 {[%emt 0:00:00]} Rb4+ {[%emt 0:00:00]} 52. Kc3 {[%emt 0:00:00]} Rg4 {[%emt 0:00:00]} 53. Kxb3 {[%emt 0:00:00]} Rxg5 {[%emt 0:00:00]} 54. Kc4 {[%emt 0:00:00]} Rg4+ {[%emt 0:00:00]} 55. Kd3 {[%emt 0:00:00]} Ke5 {[%emt 0:00:00]} 56. Rb5+ {[%emt 0:00:00]} Ke6 {[%emt 0:00:00]} 57. Rc5 {[%emt 0:00:00]} Rh4 {[%emt 0:00:00]} 58. Rg5 {[%emt 0:00:00]} Ra4 {[%emt 0:00:00]} 59. Rg6+ {[%emt 0:00:00]} Ke5 {[%emt 0:00:00]} 60. Rg5+ {[%emt 0:00:00]} Ke6 {[%emt 0:00:00]} 61. Rh5 {[%emt 0:00:00]} Rb4 {[%emt 0:00:00]} 62. Rh8 {[%emt 0:00:00]} Ra4 {[%emt 0:00:00]} 63. Re8+ {[%emt 0:00:00]} Kd5 {[%emt 0:00:00]} 64. Ke3 {[%emt 0:00:00]} Ra7 {[%emt 0:00:00]} 65. Re4 {[%emt 0:00:00]} Ra8 {[%emt 0:00:00]} 66. Re7 {[%emt 0:00:00]} Rb8 {[%emt 0:00:00]} 67. Rf7 {[%emt 0:00:00]} Ke5 {[%emt 0:00:00]} 68. Kf3 {[%emt 0:00:00]} Rb4 {[%emt 0:00:00]} 69. Re7+ {[%emt 0:00:00]} Kf5 {[%emt 0:00:00]} 70. Ra7 {[%emt 0:00:00]} Ke5 {[%emt 0:00:00]} 71. Ra5+ {[%emt 0:00:00]} Ke6 {[%emt 0:00:00]} 72. Ra3 {[%emt 0:00:00]} Rb5 {[%emt 0:00:00]} 73. Re3+ {[%emt 0:00:00]} Kf5 {[%emt 0:00:00]} 74. Re8 {[%emt 0:00:00]} Ra5 {[%emt 0:00:00]} 75. Rf8+ {[%emt 0:00:00]} Ke5 {[%emt 0:00:00]} 76. Re8+ {[%emt 0:00:00]} Kf5 {[%emt 0:00:00]} 77. e4+ {[%emt 0:00:00]} Kf6 {[%emt 0:00:00]} 78. Rf8+ {[%emt 0:00:00]} Ke6 {[%emt 0:00:00]} 79. Rh8 {[%emt 0:00:00]} Ra1 {[%emt 0:00:00]} 80. Re8+ {[%emt 0:00:00]} Kf6 {[%emt 0:00:00]} 81. Kf4 {[%emt 0:00:00]} Rf1+ {[%emt 0:00:00]} 82. Ke3 {[%emt 0:00:00]} Re1+ {[%emt 0:00:00]} 83. Kd2 {[%emt 0:00:00]} Ra1 {[%emt 0:00:00]} 84. Kc3 {[%emt 0:00:00]} Rc1+ {[%emt 0:00:00]} 85. Kd4 {[%emt 0:00:00]} Rd1+ {[%emt 0:00:00]} 86. Kc5 {[%emt 0:00:00]} Rc1+ {[%emt 0:00:00]} 87. Kd6 {[%emt 0:00:00]} Rd1+ {[%emt 0:00:00]} 88. Kc7 {[%emt 0:00:00]} Rc1+ {[%emt 0:00:00]} 89. Kd8 {[%emt 0:00:00]} Ra1 1/2-1/2

[Event "41st Jacques-Lemans-Open 2022"]
[Site "St. Veit/Glan"]
[Date "2022.07.09"]
[Round "1.5"]
[White "Kobas, Mihael"]
[Black "Praznik, Niko"]
[Result "0-1"]
[ECO "A40"]
[WhiteElo "1983"]
[BlackElo "2325"]
[Annotator "RC"]
[PlyCount "72"]
[EventDate "2022.07.09"]
[EventType "swiss"]
[EventCountry "AUT"]
[SourceTitle "playchess.com"]
[Source "ChessBase"]
[SourceQuality "1"]
[TimeControl "40/5400+30:1800+30"]

1. d4 {[%emt 0:00:03]} g6 {[%emt 0:06:53]} 2. c4 {[%emt 0:00:25]} Bg7 {[%emt 0:00:09]} 3. Nf3 {[%emt 0:02:31]} d6 {[%emt 0:00:25]} 4. g3 {[%emt 0:00:23]} Nc6 {[%emt 0:01:55]} 5. Bg2 {[%emt 0:00:48]} e5 {[%emt 0:00:59]} 6. dxe5 {[%emt 0:04:55]} dxe5 {[%emt 0:00:30]} 7. Qxd8+ {[%emt 0:00:48]} Nxd8 {[%emt 0:00:09]} 8. Nc3 {[%emt 0:00:47]} c6 {[%emt 0:00:53]} 9. e3 {[%emt 0:14:26]} Bf5 {[%emt 0:04:37]} 10. b3 {[%emt 0:08:39]} Ne6 {[%emt 0:05:37]} 11. e4 {[%emt 0:10:31]} Bg4 {[%emt 0:00:14]} 12. h3 {[%emt 0:05:16]} Bxf3 {[%emt 0:00:06]} 13. Bxf3 {[%emt 0:00:02]} Nd4 {[%emt 0:06:12]} 14. Bd1 {[%emt 0:00:10]} Nf6 {[%emt 0:01:30]} 15. Be3 {[%emt 0:12:30]} Nd7 {[%emt 0:02:28]} 16. O-O {[%emt 0:02:43]} Nc5 {[%emt 0:02:42]} 17. b4 {[%emt 0:11:29]} Nce6 {[%emt 0:00:38]} 18. Rb1 {[%emt 0:00:43]} h5 {[%emt 0:06:02]} 19. h4 {[%emt 0:07:26]} Bh6 {[%emt 0:04:57]} 20. Bxh6 {[%emt 0:00:49]} Rxh6 {[%emt 0:00:02]} 21. f4 {[%emt 0:05:09]} f6 {[%emt 0:01:47]} 22. b5 {[%emt 0:08:20]} Nc5 {[%emt 0:01:19]} 23. bxc6 {[%emt 0:00:28]} bxc6 {[%emt 0:00:17]} 24. fxe5 {[%emt 0:01:50]} fxe5 {[%emt 0:00:06]} 25. Bf3 {[%emt 0:01:10]} Rh8 {[%emt 0:03:48]} 26. Bg2 {[%emt 0:00:07]} Ke7 {[%emt 0:00:24]} 27. Rf2 {[%emt 0:00:25]} Rhf8 {[%emt 0:00:11]} 28. Rxf8 {[%emt 0:00:59]} Rxf8 {[%emt 0:00:10]} 29. Rf1 {[%emt 0:00:26]} Rb8 {[%emt 0:02:47]} 30. Rb1 {[%emt 0:00:09]} Rxb1+ {[%emt 0:02:50]} 31. Nxb1 {[%emt 0:00:01]} Kd6 {[%emt 0:02:14]} 32. Kf2 {[%emt 0:01:27]} Nd3+ {[%emt 0:00:39]} 33. Ke3 {[%emt 0:00:16]} Nb2 {[%emt 0:00:07]} 34. Bf1 {[%emt 0:00:46]} Kc5 {[%emt 0:00:10]} 35. Nd2 {[%emt 0:00:30]} Kb4 {[%emt 0:00:08]} 36. Bd3 {[%emt 0:00:29]} Nd1# {[%emt 0:01:00]} 0-1

[Event "41st Jacques-Lemans-Open 2022"]
[Site "St. Veit/Glan"]
[Date "2022.07.09"]
[Round "1.6"]
[White "Schernthaner, David"]
[Black "Bratko, Alexander"]
[Result "1-0"]
[ECO "E35"]
[WhiteElo "2319"]
[BlackElo "1982"]
[Annotator "RC"]
[PlyCount "91"]
[EventDate "2022.07.09"]
[EventType "swiss"]
[EventCountry "AUT"]
[SourceTitle "playchess.com"]
[Source "ChessBase"]
[SourceQuality "1"]
[TimeControl "40/5400+30:1800+30"]

1. d4 {[%emt 0:00:03]} Nf6 {[%emt 0:00:09]} 2. c4 {[%emt 0:00:15]} e6 {[%emt 0:00:10]} 3. Nc3 {[%emt 0:00:20]} Bb4 {[%emt 0:00:05]} 4. Qc2 {[%emt 0:00:15]} d5 {[%emt 0:00:05]} 5. cxd5 {[%emt 0:00:28]} exd5 {[%emt 0:00:55]} 6. Bg5 {[%emt 0:03:32]} O-O {[%emt 0:01:08]} 7. e3 {[%emt 0:00:51]} h6 {[%emt 0:04:20]} 8. Bh4 {[%emt 0:01:18]} c6 {[%emt 0:05:38]} 9. Bd3 {[%emt 0:02:18]} Re8 {[%emt 0:02:04]} 10. Nf3 {[%emt 0:03:36]} Nbd7 {[%emt 0:02:07]} 11. O-O {[%emt 0:02:01]} b6 {[%emt 0:04:21]} 12. a3 {[%emt 0:04:04]} Bxc3 {[%emt 0:05:17]} 13. Qxc3 {[%emt 0:01:40]} Bb7 {[%emt 0:02:15]} 14. b4 {[%emt 0:07:54]} Qc8 {[%emt 0:10:05]} 15. Nd2 {[%emt 0:16:24]} Ba6 {[%emt 0:09:36]} 16. Rfc1 {[%emt 0:10:58]} Bxd3 {[%emt 0:01:25]} 17. Qxd3 {[%emt 0:00:05]} Qb7 {[%emt 0:06:25]} 18. Rc2 {[%emt 0:03:19]} Ne4 {[%emt 0:05:38]} 19. Rac1 {[%emt 0:01:50]} Re6 {[%emt 0:07:53]} 20. Nxe4 {[%emt 0:02:03]} dxe4 {[%emt 0:01:16]} 21. Qb3 {[%emt 0:00:24]} Nf6 {[%emt 0:06:35]} 22. a4 {[%emt 0:11:45]} Nd5 {[%emt 0:03:58]} 23. b5 {[%emt 0:00:43]} cxb5 {[%emt 0:00:10]} 24. axb5 {[%emt 0:00:50]} a5 {[%emt 0:00:47]} 25. bxa6 {[%emt 0:01:19]} Rxa6 {[%emt 0:00:45]} 26. Rc8+ {[%emt 0:02:10]} Kh7 {[%emt 0:00:07]} 27. R8c5 {[%emt 0:03:04]} Rc6 {[%emt 0:03:02]} 28. h3 {[%emt 0:01:08]} Rxc5 {[%emt 0:03:45]} 29. dxc5 {[%emt 0:01:43]} b5 {[%emt 0:02:26]} 30. Rd1 {[%emt 0:01:22]} Nf6 {[%emt 0:07:56]} 31. Rb1 {[%emt 0:00:09]} Nd7 {[%emt 0:02:43]} 32. Qxf7 {[%emt 0:01:31]} b4 {[%emt 0:00:36]} 33. Qc4 {[%emt 0:03:32]} Qc6 {[%emt 0:01:31]} 34. Qxb4 {[%emt 0:00:43]} Nxc5 {[%emt 0:01:38]} 35. Rc1 {[%emt 0:01:39]} Nd3 {[%emt 0:00:05]} 36. Rxc6 {[%emt 0:00:12]} Nxb4 {[%emt 0:00:20]} 37. Rc4 {[%emt 0:00:12]} Ra1+ {[%emt 0:00:25]} 38. Kh2 {[%emt 0:00:05]} Nd3 {[%emt 0:00:24]} 39. Rxe4 {[%emt 0:00:59]} Ra2 {[%emt 0:00:07]} 40. f3 {[%emt 0:00:21]} h5 {[%emt 0:01:39]} 41. Rd4 {[%emt 0:33:26]} Ne5 {[%emt 0:00:55]} 42. Kg3 {[%emt 0:00:00]} Nf7 {[%emt 0:00:49]} 43. Rd7 {[%emt 0:00:00]} Kg6 {[%emt 0:02:17]} 44. e4 {[%emt 0:00:00]} Ne5 {[%emt 0:01:53]} 45. Rd6+ {[%emt 0:00:00]} Kf7 {[%emt 0:00:20]} 46. Bg5 1-0

[Event "41st Jacques-Lemans-Open 2022"]
[Site "St. Veit/Glan"]
[Date "2022.07.09"]
[Round "1.7"]
[White "Holzmann, Herbert"]
[Black "Hresc, Vladimir"]
[Result "0-1"]
[ECO "A06"]
[WhiteElo "1979"]
[BlackElo "2308"]
[Annotator "RC"]
[PlyCount "72"]
[EventDate "2022.07.09"]
[EventType "swiss"]
[EventCountry "AUT"]
[SourceTitle "playchess.com"]
[Source "ChessBase"]
[SourceQuality "1"]
[TimeControl "40/5400+30:1800+30"]

1. Nf3 {[%emt 0:00:05]} d5 {[%emt 0:00:48]} 2. c4 {[%emt 0:00:14]} c6 {[%emt 0:01:00]} 3. e3 {[%emt 0:00:18]} Nf6 {[%emt 0:00:18]} 4. Nc3 {[%emt 0:00:53]} e6 {[%emt 0:00:53]} 5. b3 {[%emt 0:03:28]} Bd6 {[%emt 0:00:15]} 6. cxd5 {[%emt 0:01:38]} exd5 {[%emt 0:00:20]} 7. Bb2 {[%emt 0:00:08]} O-O {[%emt 0:00:18]} 8. Be2 {[%emt 0:02:20]} Re8 {[%emt 0:02:22]} 9. d4 {[%emt 0:02:54]} Nbd7 {[%emt 0:01:17]} 10. Qc2 {[%emt 0:03:51]} Ne4 {[%emt 0:02:49]} 11. Nxe4 {[%emt 0:03:16]} dxe4 {[%emt 0:03:33]} 12. Nd2 {[%emt 0:00:33]} Nf6 {[%emt 0:00:20]} 13. h3 {[%emt 0:00:35]} Be6 {[%emt 0:04:45]} 14. Nc4 {[%emt 0:04:22]} Bb4+ {[%emt 0:05:03]} 15. Bc3 {[%emt 0:01:12]} Bf8 {[%emt 0:00:17]} 16. Bd2 {[%emt 0:04:35]} Bd5 {[%emt 0:02:05]} 17. O-O {[%emt 0:08:53]} Rc8 {[%emt 0:11:47]} 18. b4 {[%emt 0:06:44]} Bxc4 {[%emt 0:08:13]} 19. Bxc4 {[%emt 0:05:43]} Nd5 {[%emt 0:00:13]} 20. Rfc1 {[%emt 0:08:56]} Qd7 {[%emt 0:12:43]} 21. Qb3 {[%emt 0:01:46]} b5 {[%emt 0:03:33]} 22. Bxd5 {[%emt 0:07:09]} cxd5 {[%emt 0:00:29]} 23. a3 {[%emt 0:00:15]} Rc4 {[%emt 0:00:55]} 24. Rc2 {[%emt 0:03:29]} Rec8 {[%emt 0:01:22]} 25. Rac1 {[%emt 0:00:08]} R8c6 {[%emt 0:03:27]} 26. Rxc4 {[%emt 0:01:48]} dxc4 {[%emt 0:08:09]} 27. Qc2 {[%emt 0:01:04]} f5 {[%emt 0:01:43]} 28. Bc3 {[%emt 0:02:03]} Ra6 {[%emt 0:02:31]} 29. Bb2 {[%emt 0:00:41]} h5 {[%emt 0:01:08]} 30. Qe2 {[%emt 0:05:15]} h4 {[%emt 0:05:32]} 31. f3 {[%emt 0:02:37]} Qd5 {[%emt 0:00:18]} 32. fxe4 {[%emt 0:01:05]} Qxe4 {[%emt 0:02:11]} 33. Qf3 {[%emt 0:05:18]} Re6 {[%emt 0:01:07]} 34. Re1 {[%emt 0:03:39]} Bd6 {[%emt 0:01:42]} 35. d5 {[%emt 0:00:19]} Qxf3 {[%emt 0:00:00]} 36. gxf3 {[%emt 0:02:13]} Rg6+ {[%emt 0:00:26]} 0-1